[Event "Titled Tuesday Blitz May 23 Early 2023"]
[White "Cramling Bellon, Anna"]
[Black "Yanayt, Eugene"]
[WhiteFideId "32009232"]
[BlackFideId "2020165"]
[WhiteElo "1976"]
[BlackElo "2083"]
[Result "0-1"]
[Round "09"]
[TimeControl "180+2"]
[Date "2023.05.23"]
[WhiteClock "0:00:00"]
[BlackClock "0:01:41"]

1. d4 {[%clk 0:02:57]}  Nf6 {[%clk 0:02:59]} 2. c4 {[%clk 0:02:51]}  g6 {[%clk 0:02:59]} 3. Nc3 {[%clk 0:02:48]}  Bg7 {[%clk 0:02:59]} 4. e4 {[%clk 0:02:43]}  d6 {[%clk 0:02:59]} 5. h3 {[%clk 0:02:38]}  O-O {[%clk 0:02:56]} 6. Nf3 {[%clk 0:02:34]}  e5 {[%clk 0:02:51]} 7. d5 {[%clk 0:02:30]}  a5 {[%clk 0:02:49]} 8. Bg5 {[%clk 0:02:28]}  Na6 {[%clk 0:02:47]} 9. Be2 {[%clk 0:02:25]}  h6 {[%clk 0:02:46]} 10. Be3 {[%clk 0:02:24]}  Qe8 {[%clk 0:02:46]} 11. g4 {[%clk 0:02:20]}  Nc5 {[%clk 0:02:44]} 12. Qc2 {[%clk 0:02:20]}  c6 {[%clk 0:02:43]} 13. O-O-O {[%clk 0:01:51]}  cxd5 {[%clk 0:02:38]} 14. cxd5 {[%clk 0:01:32]}  Bd7 {[%clk 0:02:37]} 15. Bxc5 {[%clk 0:01:31]}  dxc5 {[%clk 0:02:36]} 16. d6 {[%clk 0:01:31]}  b5 {[%clk 0:02:32]} 17. Nd5 {[%clk 0:01:16]}  Nxd5 {[%clk 0:02:30]} 18. Rxd5 {[%clk 0:01:17]}  c4 {[%clk 0:02:28]} 19. Qc3 {[%clk 0:00:36]}  Bc6 {[%clk 0:02:07]} 20. Rc5 {[%clk 0:00:20]}  Bxe4 {[%clk 0:02:05]} 21. Re1 {[%clk 0:00:20]}  Rc8 {[%clk 0:01:55]} 22. Rxc8 {[%clk 0:00:18]}  Qxc8 {[%clk 0:01:55]} 23. Bxc4 {[%clk 0:00:10]}  Bxf3 {[%clk 0:01:50]} 24. Bxf7+ {[%clk 0:00:09]}  Kxf7 {[%clk 0:01:44]} 25. d7 {[%clk 0:00:02]}  Qxc3+ {[%clk 0:01:41]} 26. bxc3 {[%clk 0:00:03]}  Rd8 {[%clk 0:01:41]} 27. Rd1 {[%clk 0:00:00]}  Bxd1 {[%clk 0:01:41]} 0-1


[Site "https://www.chess.com"]

[Event "Titled Tuesday Blitz May 23 Early 2023"]
[White "Winkels, Marcel"]
[Black "Sovetbekova, Nurai"]
[WhiteFideId "1003887"]
[BlackFideId "13801910"]
[WhiteElo "1900"]
[BlackElo "1857"]
[Result "0-1"]
[Round "09"]
[TimeControl "180+2"]
[Date "2023.05.23"]
[WhiteClock "0:00:12"]
[BlackClock "0:00:08"]

1. e4 {[%clk 0:03:00]}  c5 {[%clk 0:02:59]} 2. Nf3 {[%clk 0:03:00]}  d6 {[%clk 0:02:59]} 3. Nc3 {[%clk 0:03:00]}  Nf6 {[%clk 0:02:58]} 4. g3 {[%clk 0:03:00]}  Nc6 {[%clk 0:02:50]} 5. Bg2 {[%clk 0:03:00]}  e6 {[%clk 0:02:50]} 6. O-O {[%clk 0:02:59]}  Be7 {[%clk 0:02:50]} 7. d3 {[%clk 0:02:59]}  O-O {[%clk 0:02:50]} 8. Re1 {[%clk 0:02:56]}  a6 {[%clk 0:02:48]} 9. e5 {[%clk 0:02:56]}  dxe5 {[%clk 0:02:47]} 10. Nxe5 {[%clk 0:02:56]}  Nxe5 {[%clk 0:02:41]} 11. Rxe5 {[%clk 0:02:55]}  Qc7 {[%clk 0:02:40]} 12. Re1 {[%clk 0:02:48]}  Bd7 {[%clk 0:02:38]} 13. Bf4 {[%clk 0:02:47]}  Qc8 {[%clk 0:02:30]} 14. Ne4 {[%clk 0:02:29]}  Nxe4 {[%clk 0:02:27]} 15. Bxe4 {[%clk 0:02:25]}  Bc6 {[%clk 0:02:26]} 16. Qf3 {[%clk 0:02:06]}  Bxe4 {[%clk 0:02:23]} 17. Rxe4 {[%clk 0:02:05]}  Bf6 {[%clk 0:02:23]} 18. Rb1 {[%clk 0:02:03]}  Qd7 {[%clk 0:02:19]} 19. Be5 {[%clk 0:01:56]}  Bxe5 {[%clk 0:02:17]} 20. Rxe5 {[%clk 0:01:56]}  Rac8 {[%clk 0:02:15]} 21. Qe3 {[%clk 0:01:53]}  c4 {[%clk 0:02:12]} 22. d4 {[%clk 0:01:53]}  Qa4 {[%clk 0:02:04]} 23. Qc3 {[%clk 0:01:44]}  Qxa2 {[%clk 0:01:59]} 24. Rbe1 {[%clk 0:01:38]}  Qa4 {[%clk 0:01:51]} 25. d5 {[%clk 0:01:35]}  exd5 {[%clk 0:01:49]} 26. Rg5 {[%clk 0:01:30]}  f6 {[%clk 0:01:42]} 27. Re7 {[%clk 0:01:20]}  Rf7 {[%clk 0:01:41]} 28. Rxf7 {[%clk 0:01:18]}  Kxf7 {[%clk 0:01:40]} 29. Rxd5 {[%clk 0:01:19]}  Qc6 {[%clk 0:01:39]} 30. Qd4 {[%clk 0:01:15]}  Rc7 {[%clk 0:01:35]} 31. h4 {[%clk 0:01:14]}  b5 {[%clk 0:01:30]} 32. c3 {[%clk 0:01:13]}  Re7 {[%clk 0:01:28]} 33. Kh2 {[%clk 0:01:10]}  a5 {[%clk 0:00:58]} 34. Rd6 {[%clk 0:01:06]}  Qe4 {[%clk 0:00:46]} 35. Qb6 {[%clk 0:00:58]}  Qc2 {[%clk 0:00:38]} 36. Kg2 {[%clk 0:00:52]}  Qxb2 {[%clk 0:00:30]} 37. Qxa5 {[%clk 0:00:51]}  Qe2 {[%clk 0:00:19]} 38. Qxb5 {[%clk 0:00:44]}  Qe4+ {[%clk 0:00:19]} 39. Kh2 {[%clk 0:00:42]}  Kg6 {[%clk 0:00:16]} 40. h5+ {[%clk 0:00:39]}  Kf7 {[%clk 0:00:16]} 41. Qd5+ {[%clk 0:00:37]}  Qxd5 {[%clk 0:00:16]} 42. Rxd5 {[%clk 0:00:37]}  Re2 {[%clk 0:00:17]} 43. Rc5 {[%clk 0:00:34]}  Rxf2+ {[%clk 0:00:17]} 44. Kg1 {[%clk 0:00:34]}  Rc2 {[%clk 0:00:16]} 45. Rxc4 {[%clk 0:00:34]}  g6 {[%clk 0:00:16]} 46. h6 {[%clk 0:00:33]}  Rc1+ {[%clk 0:00:14]} 47. Kg2 {[%clk 0:00:31]}  Rc2+ {[%clk 0:00:15]} 48. Kf3 {[%clk 0:00:31]}  g5 {[%clk 0:00:15]} 49. Rc7+ {[%clk 0:00:24]}  Kg6 {[%clk 0:00:15]} 50. Rc6 {[%clk 0:00:25]}  Kxh6 {[%clk 0:00:12]} 51. Rxf6+ {[%clk 0:00:24]}  Kg7 {[%clk 0:00:12]} 52. Rc6 {[%clk 0:00:24]}  h6 {[%clk 0:00:11]} 53. c4 {[%clk 0:00:24]}  Rc3+ {[%clk 0:00:10]} 54. Kg4 {[%clk 0:00:24]}  Kf7 {[%clk 0:00:07]} 55. Rc7+ {[%clk 0:00:20]}  Kg6 {[%clk 0:00:07]} 56. c5 {[%clk 0:00:19]}  h5+ {[%clk 0:00:06]} 57. Kh3 {[%clk 0:00:19]}  h4 {[%clk 0:00:06]} 58. Rc6+ {[%clk 0:00:18]}  Kh5 {[%clk 0:00:06]} 59. Rc8 {[%clk 0:00:16]}  Rxg3+ {[%clk 0:00:06]} 60. Kh2 {[%clk 0:00:16]}  Rc3 {[%clk 0:00:07]} 61. c6 {[%clk 0:00:16]}  Kg4 {[%clk 0:00:07]} 62. c7 {[%clk 0:00:14]}  Rc2+ {[%clk 0:00:08]} 63. Kg1 {[%clk 0:00:13]}  Kg3 {[%clk 0:00:08]} 64. Rg8 {[%clk 0:00:12]}  Rc1# {[%clk 0:00:08]} 0-1


[Site "https://www.chess.com"]

[Event "Titled Tuesday Blitz May 23 Early 2023"]
[White "Afanasieva, Alexandra"]
[Black "Necula, Iulian"]
[WhiteFideId "34126926"]
[BlackFideId "1232380"]
[WhiteElo "1745"]
[BlackElo "1790"]
[Result "1-0"]
[Round "09"]
[TimeControl "180+2"]
[Date "2023.05.23"]
[WhiteClock "0:00:36"]
[BlackClock "0:00:09"]

1. e4 {[%clk 0:02:40]}  d6 {[%clk 0:03:00]} 2. d4 {[%clk 0:02:38]}  Nf6 {[%clk 0:03:01]} 3. Nc3 {[%clk 0:02:38]}  Nbd7 {[%clk 0:03:02]} 4. Bg5 {[%clk 0:02:32]}  h6 {[%clk 0:03:00]} 5. Bh4 {[%clk 0:02:33]}  e5 {[%clk 0:02:56]} 6. dxe5 {[%clk 0:02:29]}  dxe5 {[%clk 0:02:55]} 7. Bb5 {[%clk 0:02:28]}  c6 {[%clk 0:02:54]} 8. Bc4 {[%clk 0:02:26]}  Be7 {[%clk 0:02:54]} 9. Nf3 {[%clk 0:02:13]}  Qc7 {[%clk 0:02:51]} 10. O-O {[%clk 0:01:49]}  b5 {[%clk 0:02:50]} 11. Bb3 {[%clk 0:01:42]}  b4 {[%clk 0:02:49]} 12. Ne2 {[%clk 0:01:41]}  Nxe4 {[%clk 0:02:45]} 13. Bxe7 {[%clk 0:01:39]}  Kxe7 {[%clk 0:02:46]} 14. Re1 {[%clk 0:01:33]}  Nec5 {[%clk 0:02:40]} 15. Ng3 {[%clk 0:01:28]}  Nxb3 {[%clk 0:02:33]} 16. cxb3 {[%clk 0:01:29]}  f6 {[%clk 0:02:31]} 17. Rc1 {[%clk 0:01:24]}  Rd8 {[%clk 0:02:25]} 18. Nf5+ {[%clk 0:01:22]}  Kf8 {[%clk 0:02:24]} 19. Qc2 {[%clk 0:01:20]}  c5 {[%clk 0:02:13]} 20. N3h4 {[%clk 0:01:16]}  Nb6 {[%clk 0:00:26]} 21. Qxc5+ {[%clk 0:01:00]}  Qxc5 {[%clk 0:00:25]} 22. Rxc5 {[%clk 0:01:01]}  Bxf5 {[%clk 0:00:24]} 23. Nxf5 {[%clk 0:01:02]}  Rd2 {[%clk 0:00:16]} 24. Rc7 {[%clk 0:00:56]}  Rxb2 {[%clk 0:00:15]} 25. Rxg7 {[%clk 0:00:54]}  Rd8 {[%clk 0:00:13]} 26. Rh7 {[%clk 0:00:53]}  Rdd2 {[%clk 0:00:12]} 27. Rf1 {[%clk 0:00:50]}  h5 {[%clk 0:00:11]} 28. Rxh5 {[%clk 0:00:47]}  Nd5 {[%clk 0:00:09]} 29. Rh7 {[%clk 0:00:43]}  Nf4 {[%clk 0:00:09]} 30. g3 {[%clk 0:00:39]}  Ne2+ {[%clk 0:00:08]} 31. Kg2 {[%clk 0:00:39]}  Nd4 {[%clk 0:00:08]} 32. Nxd4 {[%clk 0:00:38]}  exd4 {[%clk 0:00:09]} 33. Rc1 {[%clk 0:00:37]}  Rxa2 {[%clk 0:00:09]} 34. Rc8# {[%clk 0:00:36]} 1-0


[Site "https://www.chess.com"]

[Event "Titled Tuesday Blitz May 23 Early 2023"]
[White "James, Stuart"]
[Black "Semenova, Alina"]
[WhiteFideId "7400489"]
[BlackFideId "24113875"]
[WhiteElo "1950"]
[BlackElo "1833"]
[Result "0-1"]
[Round "09"]
[TimeControl "180+2"]
[Date "2023.05.23"]
[WhiteClock "0:00:06"]
[BlackClock "0:01:16"]

1. e4 {[%clk 0:03:00]}  c5 {[%clk 0:02:59]} 2. Nf3 {[%clk 0:02:59]}  Nc6 {[%clk 0:02:59]} 3. Bb5 {[%clk 0:02:59]}  g6 {[%clk 0:02:57]} 4. O-O {[%clk 0:02:57]}  Bg7 {[%clk 0:02:55]} 5. c3 {[%clk 0:02:57]}  e5 {[%clk 0:02:51]} 6. d4 {[%clk 0:02:57]}  cxd4 {[%clk 0:02:50]} 7. cxd4 {[%clk 0:02:56]}  Nxd4 {[%clk 0:02:47]} 8. Nxd4 {[%clk 0:02:56]}  exd4 {[%clk 0:02:47]} 9. e5 {[%clk 0:02:56]}  Ne7 {[%clk 0:02:44]} 10. Bg5 {[%clk 0:02:56]}  Bxe5 {[%clk 0:02:18]} 11. Re1 {[%clk 0:02:06]}  f6 {[%clk 0:02:18]} 12. f4 {[%clk 0:01:39]}  fxg5 {[%clk 0:02:11]} 13. Rxe5 {[%clk 0:01:34]}  O-O {[%clk 0:02:05]} 14. Qxd4 {[%clk 0:01:14]}  Rxf4 {[%clk 0:01:44]} 15. Qd6 {[%clk 0:00:28]}  Nf5 {[%clk 0:01:32]} 16. Bc4+ {[%clk 0:00:24]}  Kg7 {[%clk 0:01:30]} 17. Qd5 {[%clk 0:00:14]}  Qb6+ {[%clk 0:01:25]} 18. Qc5 {[%clk 0:00:11]}  Qxb2 {[%clk 0:01:17]} 19. Nc3 {[%clk 0:00:06]}  Qxa1+ {[%clk 0:01:16]} 0-1


[Site "https://www.chess.com"]

[Event "Titled Tuesday Blitz May 23 Early 2023"]
[White "Castillo Pena, Patricia Evarista"]
[Black "chessjazda"]
[WhiteFideId "6412106"]
[WhiteElo "1919"]
[BlackElo "2273"]
[Result "0-1"]
[Round "09"]
[TimeControl "180+2"]
[Date "2023.05.23"]
[WhiteClock "0:00:00"]
[BlackClock "0:01:43"]

1. d4 {[%clk 0:03:00]}  e6 {[%clk 0:03:00]} 2. Nf3 {[%clk 0:03:00]}  d5 {[%clk 0:02:59]} 3. e3 {[%clk 0:03:00]}  Bd6 {[%clk 0:03:00]} 4. Bd3 {[%clk 0:02:59]}  c6 {[%clk 0:03:00]} 5. b3 {[%clk 0:02:59]}  Nf6 {[%clk 0:03:00]} 6. Bb2 {[%clk 0:03:00]}  Nbd7 {[%clk 0:03:00]} 7. O-O {[%clk 0:02:59]}  b6 {[%clk 0:03:00]} 8. Ne5 {[%clk 0:02:59]}  Bb7 {[%clk 0:03:00]} 9. f4 {[%clk 0:02:59]}  Qe7 {[%clk 0:02:58]} 10. c4 {[%clk 0:02:57]}  Ne4 {[%clk 0:02:48]} 11. a3 {[%clk 0:02:55]}  f5 {[%clk 0:02:48]} 12. Qh5+ {[%clk 0:02:27]}  g6 {[%clk 0:02:34]} 13. Qe2 {[%clk 0:02:20]}  O-O {[%clk 0:02:33]} 14. Nd2 {[%clk 0:02:10]}  Ndf6 {[%clk 0:02:07]} 15. b4 {[%clk 0:01:41]}  Nxd2 {[%clk 0:01:56]} 16. Qxd2 {[%clk 0:01:41]}  Ne4 {[%clk 0:01:57]} 17. Bxe4 {[%clk 0:01:41]}  fxe4 {[%clk 0:01:56]} 18. Rac1 {[%clk 0:01:31]}  Ba6 {[%clk 0:01:50]} 19. Rf2 {[%clk 0:01:15]}  Bxe5 {[%clk 0:01:49]} 20. fxe5 {[%clk 0:01:13]}  Bxc4 {[%clk 0:01:48]} 21. Rxc4 {[%clk 0:01:07]}  dxc4 {[%clk 0:01:46]} 22. Bc3 {[%clk 0:00:54]}  b5 {[%clk 0:01:43]} 23. Qe2 {[%clk 0:00:16]}  Rxf2 {[%clk 0:01:42]} 24. Qxf2 {[%clk 0:00:15]}  Rf8 {[%clk 0:01:43]} 25. Qe2 {[%clk 0:00:16]}  Qf7 {[%clk 0:01:44]} 26. h3 {[%clk 0:00:00]}  Qf5 {[%clk 0:01:43]} 0-1


[Site "https://www.chess.com"]

[Event "Titled Tuesday Blitz May 23 Early 2023"]
[White "Singgih, Diajeng Theresa"]
[Black "Silva Rosas, Natalia"]
[WhiteFideId "7104391"]
[BlackFideId "3000575"]
[WhiteElo "1891"]
[BlackElo "1651"]
[Result "1-0"]
[Round "09"]
[TimeControl "180+2"]
[Date "2023.05.23"]
[WhiteClock "0:00:19"]
[BlackClock "0:00:00"]

1. e4 {[%clk 0:02:35]}  c5 {[%clk 0:02:51]} 2. Nf3 {[%clk 0:02:32]}  d6 {[%clk 0:02:48]} 3. d4 {[%clk 0:02:31]}  cxd4 {[%clk 0:02:49]} 4. Nxd4 {[%clk 0:02:31]}  g6 {[%clk 0:02:48]} 5. Nc3 {[%clk 0:02:31]}  Bg7 {[%clk 0:02:48]} 6. Be3 {[%clk 0:02:30]}  a6 {[%clk 0:02:48]} 7. Be2 {[%clk 0:02:28]}  Nf6 {[%clk 0:02:47]} 8. O-O {[%clk 0:02:28]}  O-O {[%clk 0:02:47]} 9. f4 {[%clk 0:02:27]}  Nc6 {[%clk 0:02:44]} 10. Nxc6 {[%clk 0:02:19]}  bxc6 {[%clk 0:02:43]} 11. Bf3 {[%clk 0:02:12]}  Qc7 {[%clk 0:02:29]} 12. Qe2 {[%clk 0:02:06]}  Be6 {[%clk 0:02:24]} 13. Bd4 {[%clk 0:01:54]}  Rfd8 {[%clk 0:01:48]} 14. Rad1 {[%clk 0:01:43]}  c5 {[%clk 0:01:40]} 15. Be3 {[%clk 0:01:40]}  Rab8 {[%clk 0:01:33]} 16. b3 {[%clk 0:01:38]}  c4 {[%clk 0:01:28]} 17. Nd5 {[%clk 0:01:36]}  Bxd5 {[%clk 0:01:19]} 18. exd5 {[%clk 0:01:36]}  cxb3 {[%clk 0:01:17]} 19. axb3 {[%clk 0:01:35]}  a5 {[%clk 0:01:13]} 20. Rd3 {[%clk 0:01:28]}  Qd7 {[%clk 0:00:59]} 21. c4 {[%clk 0:01:24]}  a4 {[%clk 0:00:57]} 22. bxa4 {[%clk 0:01:06]}  Qxa4 {[%clk 0:00:57]} 23. Rdd1 {[%clk 0:01:03]}  Qd7 {[%clk 0:00:51]} 24. g4 {[%clk 0:01:03]}  h6 {[%clk 0:00:48]} 25. h4 {[%clk 0:01:02]}  Nh7 {[%clk 0:00:45]} 26. g5 {[%clk 0:01:01]}  h5 {[%clk 0:00:44]} 27. Bxh5 {[%clk 0:00:41]}  Rb2 {[%clk 0:00:35]} 28. Qf3 {[%clk 0:00:37]}  gxh5 {[%clk 0:00:29]} 29. f5 {[%clk 0:00:36]}  Be5 {[%clk 0:00:25]} 30. Qxh5 {[%clk 0:00:34]}  Bh2+ {[%clk 0:00:21]} 31. Kh1 {[%clk 0:00:33]}  Be5 {[%clk 0:00:18]} 32. Rf3 {[%clk 0:00:26]}  Rh2+ {[%clk 0:00:17]} 33. Kg1 {[%clk 0:00:26]}  Rc2 {[%clk 0:00:15]} 34. g6 {[%clk 0:00:23]}  fxg6 {[%clk 0:00:00]} 35. fxg6 {[%clk 0:00:19]} 1-0


[Site "https://www.chess.com"]

[Event "Titled Tuesday Blitz May 23 Early 2023"]
[White "Piesik, Piotr"]
[Black "stratacticos"]
[WhiteFideId "1136194"]
[WhiteElo "2299"]
[BlackElo "1895"]
[Result "1-0"]
[Round "09"]
[TimeControl "180+2"]
[Date "2023.05.23"]
[WhiteClock "0:00:44"]
[BlackClock "0:00:10"]

1. Nf3 {[%clk 0:03:00]}  c5 {[%clk 0:02:59]} 2. e4 {[%clk 0:02:59]}  Nc6 {[%clk 0:02:59]} 3. Bb5 {[%clk 0:02:59]}  Na5 {[%clk 0:02:58]} 4. c3 {[%clk 0:02:55]}  a6 {[%clk 0:02:58]} 5. Ba4 {[%clk 0:02:55]}  b5 {[%clk 0:02:58]} 6. Bc2 {[%clk 0:02:56]}  Bb7 {[%clk 0:02:53]} 7. O-O {[%clk 0:02:55]}  g6 {[%clk 0:02:52]} 8. d4 {[%clk 0:02:54]}  cxd4 {[%clk 0:02:52]} 9. cxd4 {[%clk 0:02:55]}  Rc8 {[%clk 0:02:51]} 10. Nc3 {[%clk 0:02:52]}  Bg7 {[%clk 0:02:49]} 11. Re1 {[%clk 0:02:44]}  Qc7 {[%clk 0:02:48]} 12. Bd3 {[%clk 0:02:39]}  Nf6 {[%clk 0:02:40]} 13. e5 {[%clk 0:02:31]}  Nd5 {[%clk 0:02:27]} 14. Ne4 {[%clk 0:02:22]}  O-O {[%clk 0:02:26]} 15. Bg5 {[%clk 0:02:13]}  f6 {[%clk 0:02:23]} 16. Rc1 {[%clk 0:02:12]}  Qb6 {[%clk 0:02:15]} 17. Rxc8 {[%clk 0:02:01]}  Rxc8 {[%clk 0:02:10]} 18. Bd2 {[%clk 0:01:56]}  Nc4 {[%clk 0:02:06]} 19. Bc1 {[%clk 0:01:55]}  fxe5 {[%clk 0:02:02]} 20. dxe5 {[%clk 0:01:44]}  Nxe5 {[%clk 0:01:58]} 21. Nxe5 {[%clk 0:01:44]}  Bxe5 {[%clk 0:01:58]} 22. Ng5 {[%clk 0:01:44]}  Bf6 {[%clk 0:01:48]} 23. Nxh7 {[%clk 0:01:38]}  Rxc1 {[%clk 0:01:37]} 24. Nxf6+ {[%clk 0:01:34]}  Nxf6 {[%clk 0:01:36]} 25. Qxc1 {[%clk 0:01:33]}  Ng4 {[%clk 0:01:17]} 26. Qf4 {[%clk 0:01:33]}  Nf6 {[%clk 0:00:47]} 27. Qg3 {[%clk 0:01:22]}  Nd5 {[%clk 0:00:37]} 28. Bxg6 {[%clk 0:01:16]}  Qf6 {[%clk 0:00:28]} 29. Be4+ {[%clk 0:01:08]}  Kf7 {[%clk 0:00:27]} 30. b3 {[%clk 0:01:03]}  e6 {[%clk 0:00:23]} 31. h3 {[%clk 0:01:01]}  Bc6 {[%clk 0:00:23]} 32. Qf3 {[%clk 0:00:48]}  Qxf3 {[%clk 0:00:18]} 33. Bxf3 {[%clk 0:00:48]}  Ne7 {[%clk 0:00:17]} 34. Bxc6 {[%clk 0:00:47]}  Nxc6 {[%clk 0:00:17]} 35. g4 {[%clk 0:00:47]}  d5 {[%clk 0:00:17]} 36. f4 {[%clk 0:00:45]}  Ke7 {[%clk 0:00:16]} 37. Kf2 {[%clk 0:00:45]}  Kd6 {[%clk 0:00:16]} 38. h4 {[%clk 0:00:45]}  Nd4 {[%clk 0:00:10]} 39. h5 {[%clk 0:00:44]} 1-0


[Site "https://www.chess.com"]

[Event "Titled Tuesday Blitz May 23 Early 2023"]
[White "Corredor Castellanos, Camilo"]
[Black "Mirimanian, Hayk"]
[WhiteFideId "4425871"]
[BlackFideId "4700180"]
[WhiteElo "1994"]
[BlackElo "2280"]
[Result "0-1"]
[Round "09"]
[TimeControl "180+2"]
[Date "2023.05.23"]
[WhiteClock "0:01:29"]
[BlackClock "0:00:33"]

1. e4 {[%clk 0:02:42]}  c5 {[%clk 0:02:58]} 2. Nf3 {[%clk 0:02:41]}  d6 {[%clk 0:02:57]} 3. d4 {[%clk 0:02:40]}  cxd4 {[%clk 0:02:57]} 4. Nxd4 {[%clk 0:02:41]}  Nf6 {[%clk 0:02:57]} 5. Nc3 {[%clk 0:02:41]}  a6 {[%clk 0:02:58]} 6. Bg5 {[%clk 0:02:39]}  e6 {[%clk 0:02:47]} 7. f4 {[%clk 0:02:35]}  Qb6 {[%clk 0:02:41]} 8. Qd2 {[%clk 0:02:35]}  Qxb2 {[%clk 0:02:36]} 9. Rb1 {[%clk 0:02:35]}  Qa3 {[%clk 0:02:35]} 10. e5 {[%clk 0:02:16]}  dxe5 {[%clk 0:02:34]} 11. fxe5 {[%clk 0:02:16]}  Nfd7 {[%clk 0:02:33]} 12. Ne4 {[%clk 0:02:12]}  Qxa2 {[%clk 0:02:12]} 13. Rb3 {[%clk 0:02:04]}  h6 {[%clk 0:02:09]} 14. Bh4 {[%clk 0:01:56]}  Qa1+ {[%clk 0:02:03]} 15. Kf2 {[%clk 0:01:56]}  Nc6 {[%clk 0:01:58]} 16. Nxc6 {[%clk 0:01:49]}  bxc6 {[%clk 0:01:57]} 17. Nd6+ {[%clk 0:01:49]}  Bxd6 {[%clk 0:01:55]} 18. Qxd6 {[%clk 0:01:50]}  g5 {[%clk 0:01:52]} 19. Qxc6 {[%clk 0:01:47]}  Qd4+ {[%clk 0:01:43]} 20. Re3 {[%clk 0:01:37]}  Qa7 {[%clk 0:00:49]} 21. Bc4 {[%clk 0:01:31]}  Bb7 {[%clk 0:00:45]} 22. Qd6 {[%clk 0:01:32]}  Rc8 {[%clk 0:00:40]} 23. Bxe6 {[%clk 0:01:31]}  Rxc2+ {[%clk 0:00:35]} 24. Kf1 {[%clk 0:01:29]}  Bxg2+ {[%clk 0:00:33]} 0-1


[Site "https://www.chess.com"]

[Event "Titled Tuesday Blitz May 23 Early 2023"]
[White "Sjugirov, Sanan"]
[Black "Demchenko, Anton"]
[WhiteFideId "4189302"]
[BlackFideId "4160258"]
[WhiteElo "2569"]
[BlackElo "2545"]
[Result "0-1"]
[Round "10"]
[TimeControl "180+2"]
[Date "2023.05.23"]
[WhiteClock "0:00:00"]
[BlackClock "0:00:07"]

1. d4 {[%clk 0:03:00]}  Nf6 {[%clk 0:02:55]} 2. c4 {[%clk 0:03:01]}  d6 {[%clk 0:02:55]} 3. Nc3 {[%clk 0:02:53]}  e5 {[%clk 0:02:54]} 4. d5 {[%clk 0:02:35]}  Bf5 {[%clk 0:02:42]} 5. g3 {[%clk 0:02:19]}  Nbd7 {[%clk 0:02:35]} 6. Bg2 {[%clk 0:02:19]}  e4 {[%clk 0:02:32]} 7. Nh3 {[%clk 0:02:10]}  g6 {[%clk 0:02:16]} 8. f3 {[%clk 0:01:56]}  Ne5 {[%clk 0:02:02]} 9. Nf2 {[%clk 0:01:52]}  exf3 {[%clk 0:01:31]} 10. exf3 {[%clk 0:01:53]}  Bd7 {[%clk 0:01:10]} 11. Qe2 {[%clk 0:01:41]}  Be7 {[%clk 0:00:54]} 12. Bh6 {[%clk 0:01:34]}  Rg8 {[%clk 0:00:39]} 13. Bd2 {[%clk 0:01:09]}  g5 {[%clk 0:00:34]} 14. O-O {[%clk 0:01:05]}  Bf5 {[%clk 0:00:24]} 15. g4 {[%clk 0:00:54]}  Bg6 {[%clk 0:00:21]} 16. Bxg5 {[%clk 0:00:50]}  h5 {[%clk 0:00:03]} 17. Bxf6 {[%clk 0:00:44]}  Bxf6 {[%clk 0:00:04]} 18. f4 {[%clk 0:00:45]}  hxg4 {[%clk 0:00:01]} 19. fxe5 {[%clk 0:00:45]}  Bxe5 {[%clk 0:00:02]} 20. Nxg4 {[%clk 0:00:20]}  Bh5 {[%clk 0:00:03]} 21. h3 {[%clk 0:00:11]}  Bxg4 {[%clk 0:00:02]} 22. hxg4 {[%clk 0:00:11]}  Qh4 {[%clk 0:00:03]} 23. Rf3 {[%clk 0:00:10]}  Rxg4 {[%clk 0:00:03]} 24. Kf1 {[%clk 0:00:07]}  O-O-O {[%clk 0:00:03]} 25. Bh3 {[%clk 0:00:06]}  f5 {[%clk 0:00:01]} 26. Qf2 {[%clk 0:00:03]}  Qh5 {[%clk 0:00:01]} 27. Ke1 {[%clk 0:00:01]}  Kb8 {[%clk 0:00:01]} 28. Kd2 {[%clk 0:00:02]}  Qh6+ {[%clk 0:00:01]} 29. Kc2 {[%clk 0:00:02]}  Rxc4 {[%clk 0:00:02]} 30. Re1 {[%clk 0:00:02]}  Bxc3 {[%clk 0:00:01]} 31. Rxc3 {[%clk 0:00:02]}  Rxc3+ {[%clk 0:00:01]} 32. bxc3 {[%clk 0:00:03]}  Qxh3 {[%clk 0:00:02]} 33. Qf4 {[%clk 0:00:03]}  Qg2+ {[%clk 0:00:02]} 34. Kb1 {[%clk 0:00:03]}  Qxd5 {[%clk 0:00:03]} 35. Qg5 {[%clk 0:00:04]}  Rc8 {[%clk 0:00:02]} 36. Qf6 {[%clk 0:00:05]}  Qb5+ {[%clk 0:00:03]} 37. Ka1 {[%clk 0:00:05]}  a6 {[%clk 0:00:03]} 38. Qf7 {[%clk 0:00:05]}  Qc5 {[%clk 0:00:03]} 39. Qb3 {[%clk 0:00:05]}  Rh8 {[%clk 0:00:03]} 40. Rb1 {[%clk 0:00:05]}  b6 {[%clk 0:00:03]} 41. Rf1 {[%clk 0:00:05]}  Rh3 {[%clk 0:00:04]} 42. Kb2 {[%clk 0:00:05]}  Rh2+ {[%clk 0:00:04]} 43. Ka1 {[%clk 0:00:06]}  f4 {[%clk 0:00:05]} 44. Qg8+ {[%clk 0:00:03]}  Ka7 {[%clk 0:00:05]} 45. Qg7 {[%clk 0:00:04]}  f3 {[%clk 0:00:05]} 46. Rxf3 {[%clk 0:00:03]}  Rh1+ {[%clk 0:00:04]} 47. Kb2 {[%clk 0:00:03]}  Qb5+ {[%clk 0:00:05]} 48. Kc2 {[%clk 0:00:04]}  Qa4+ {[%clk 0:00:05]} 49. Kd3 {[%clk 0:00:04]}  Qd1+ {[%clk 0:00:05]} 50. Ke3 {[%clk 0:00:04]}  Re1+ {[%clk 0:00:05]} 51. Kf4 {[%clk 0:00:05]}  Qd2+ {[%clk 0:00:06]} 52. Kf5 {[%clk 0:00:05]}  Qc2+ {[%clk 0:00:06]} 53. Kf6 {[%clk 0:00:04]}  Kb7 {[%clk 0:00:05]} 54. Qf7 {[%clk 0:00:02]}  Re5 {[%clk 0:00:06]} 55. Qc4 {[%clk 0:00:02]}  Qh7 {[%clk 0:00:05]} 56. Qf7 {[%clk 0:00:01]}  Qh6+ {[%clk 0:00:05]} 57. Qg6 {[%clk 0:00:01]}  Re6+ {[%clk 0:00:05]} 58. Kxe6 {[%clk 0:00:02]}  Qxg6+ {[%clk 0:00:05]} 59. Kd7 {[%clk 0:00:02]}  Qg4+ {[%clk 0:00:05]} 60. Kd8 {[%clk 0:00:03]}  Qxf3 {[%clk 0:00:06]} 61. c4 {[%clk 0:00:04]}  Qc3 {[%clk 0:00:06]} 62. c5 {[%clk 0:00:00]}  Qxc5 {[%clk 0:00:07]} 0-1


[Site "https://www.chess.com"]